bitfinex/quotes_BTCUSD_20241014
["timestamp","ask_amount","ask_price","bid_price","bid_amount"]
[1728912907357,1.78447947,64751.0,64750.0,0.0075]
[1728912907583,0.78234344,64751.0,64750.0,0.0075]
[1728912907809,2.06487244,64751.0,64750.0,0.0075]
[1728912908044,0.102,64751.0,64750.0,0.0075]
[1728912908255,0.102,64751.0,64750.0,0.01904059]
[1728912908496,0.41796547,64751.0,64750.0,0.0085]
[1728912908718,0.256437,64751.0,64750.0,0.0075]
[1728912908942,0.59306547,64751.0,64750.0,0.0085]
[1728912909168,0.60706547,64751.0,64750.0,0.0095]
[1728912909381,0.59906547,64751.0,64750.0,0.0085]
[1728912909606,0.59006547,64751.0,64750.0,0.0075]
[1728912910088,0.59406547,64751.0,64750.0,0.0075]
[1728912910577,0.59006547,64751.0,64750.0,0.0075]
[1728912910827,0.59506547,64751.0,64750.0,0.0085]
[1728912911048,0.59006547,64751.0,64750.0,0.0085]
[1728912911267,0.59606547,64751.0,64750.0,0.0085]
[1728912911500,0.59006547,64751.0,64750.0,0.0085]
[1728912912000,0.59806547,64751.0,64750.0,0.0095]
[1728912912227,0.444537,64751.0,64750.0,0.0095]
[1728912912494,0.439537,64751.0,64750.0,0.0085]
[1728912912714,0.451537,64751.0,64750.0,0.0095]
[1728912913424,0.276437,64751.0,64750.0,0.0095]
[1728912914880,0.276437,64751.0,64750.0,0.02104059]
[1728912915123,0.276437,64751.0,64750.0,0.03858975]
[1728912915369,0.176437,64751.0,64750.0,0.02104059]
[1728912915626,0.164437,64751.0,64750.0,0.02004059]
[1728912915877,0.260437,64751.0,64750.0,0.0075]
[1728912916141,0.344237,64751.0,64750.0,0.0075]
[1728912916828,0.265437,64751.0,64750.0,0.0075]
[1728912917099,0.261437,64751.0,64750.0,0.0075]
[1728912917315,0.256437,64751.0,64750.0,0.0075]
[1728912917547,0.263437,64751.0,64750.0,0.0085]
[1728912918007,0.263437,64751.0,64750.0,0.009324]
[1728912918521,0.272437,64751.0,64750.0,0.010324]
[1728912918981,0.272437,64751.0,64750.0,0.009324]
[1728912918982,0.263437,64751.0,64750.0,0.009324]
[1728912919479,0.273437,64751.0,64750.0,0.010324]
[1728912922016,0.017,64751.0,64750.0,0.01541137]
[1728912922271,0.017,64751.0,64750.0,0.1888203]
[1728912922506,0.017,64751.0,64750.0,0.20028518]
[1728912922978,0.017,64751.0,64750.0,0.04584518]
[1728912923195,0.007,64751.0,64750.0,0.04484518]
[1728912923651,0.01,64751.0,64750.0,0.04484518]
[1728912923883,0.01,64751.0,64750.0,0.19928518]
[1728912924119,0.01,64751.0,64750.0,0.20428518]
[1728912924361,0.01,64751.0,64750.0,0.35781365]
[1728912924589,0.01,64751.0,64750.0,0.40409057]
[1728912924804,0.01,64751.0,64750.0,0.42722903]
[1728912925030,0.01,64751.0,64750.0,0.70469162]
[1728912925250,0.01,64751.0,64750.0,0.53041365]
[1728912925502,0.01,64751.0,64750.0,0.64505757]
[1728912925736,0.001648,64755.0,64754.0,0.15443]
[1728912925981,0.001648,64755.0,64754.0,0.64096432]
[1728912926206,0.001648,64755.0,64754.0,0.6986199]
[1728912926436,0.001648,64755.0,64754.0,0.65236971]
[1728912926671,0.001648,64755.0,64754.0,0.72956971]
[1728912928303,0.001648,64755.0,64754.0,0.64776114]
[1728912928531,0.001648,64755.0,64754.0,0.01649276]
[1728912929672,0.158076,64755.0,64754.0,0.01649276]
[1728912929920,0.158076,64755.0,64750.0,0.0470616]
[1728912929921,0.308866,64753.0,64751.0,0.00508737]
[1728912930167,0.001648,64755.0,64752.0,0.00508737]
[1728912930168,0.156076,64755.0,64752.0,0.00508737]
[1728912930408,0.001648,64755.0,64754.0,0.15443]
[1728912930639,0.002648,64755.0,64754.0,0.31304584]
[1728912931121,0.004648,64755.0,64754.0,0.31304584]
[1728912931346,0.002648,64755.0,64754.0,0.31304584]
[1728912931816,0.002648,64755.0,64754.0,0.38874584]
[1728912932051,0.002648,64755.0,64754.0,0.54238635]
[1728912932716,0.001648,64755.0,64754.0,0.54238635]
[1728912932969,0.002648,64755.0,64754.0,0.00508737]
[1728912933222,0.154437,64751.0,64750.0,0.000824]
[1728912933693,0.156437,64751.0,64750.0,0.000824]
[1728912935073,0.162437,64751.0,64750.0,0.001824]
[1728912935293,0.156437,64751.0,64750.0,0.000824]
[1728912935742,0.156437,64751.0,64750.0,0.003824]
[1728912935743,0.333237,64751.0,64750.0,0.003824]
[1728912935962,0.334237,64751.0,64750.0,0.003824]
[1728912936198,0.334237,64751.0,64750.0,0.000824]
[1728912936668,0.337237,64751.0,64750.0,0.000824]
[1728912937086,0.334237,64751.0,64750.0,0.000824]
[1728912937317,0.48676547,64751.0,64750.0,0.000824]
[1728912937718,0.86141947,64751.0,64750.0,0.001824]
[1728912937943,0.85541947,64751.0,64750.0,0.001824]
[1728912938410,0.86141947,64751.0,64750.0,0.002824]
[1728912941409,0.272437,64751.0,64750.0,0.002824]
[1728912941643,0.272437,64751.0,64750.0,0.31079247]
[1728912941644,0.016,64751.0,64750.0,0.31079247]
[1728912941874,0.016,64751.0,64750.0,0.40672876]
[1728912942324,0.006,64751.0,64750.0,0.40572876]
[1728912942560,0.001648,64755.0,64754.0,0.15443]
[1728912942805,0.001648,64755.0,64754.0,0.6253246]
[1728912943031,0.001648,64755.0,64754.0,0.49724127]
[1728912943254,0.001648,64755.0,64754.0,0.49723971]
[1728912943968,0.001648,64755.0,64754.0,0.45104663]
[1728912944195,0.001648,64755.0,64754.0,0.29661663]
[1728912944433,0.001648,64755.0,64754.0,0.4510467]
[1728912944663,0.001648,64755.0,64754.0,0.4560467]
[1728912945124,0.002648,64755.0,64754.0,0.4610467]
[1728912946358,0.002648,64755.0,64754.0,0.72929411]
[1728912950520,0.002648,64755.0,64754.0,0.71989311]
[1728912951211,0.002648,64755.0,64754.0,0.76607282]
[1728912951441,0.30876,64776.0,64754.0,0.76607282]
[1728912951442,0.002,64779.0,64770.0,0.159392]
[1728912951685,0.38797779,64778.0,64770.0,0.69532152]
[1728912951932,0.38797779,64778.0,64775.0,0.154378]
[1728912951933,0.23160479,64778.0,64775.0,0.154378]
[1728912952181,0.23160479,64778.0,64776.0,0.15352847]
[1728912952423,0.23160479,64778.0,64776.0,0.16460677]
[1728912952656,0.310367,64784.0,64777.0,0.04537591]
[1728912952949,0.23160479,64782.0,64779.0,0.26824741]
[1728912953171,0.23360479,64782.0,64779.0,0.26824741]
[1728912953394,0.156366,64781.0,64780.0,0.01101885]
[1728912953614,0.156372,64779.0,64777.0,0.04537591]
[1728912953835,0.002,64779.0,64777.0,0.04537591]
[1728912954054,0.156373,64778.0,64777.0,0.04537591]
[1728912954518,0.308737,64780.0,64776.0,0.15552847]
[1728912954519,0.156375,64777.0,64776.0,0.15552847]
[1728912954748,0.156375,64777.0,64776.0,0.15352847]
[1728912954972,0.002,64777.0,64776.0,0.15352847]
[1728912955199,0.004,64782.0,64776.0,0.15352847]
[1728912955418,0.004,64782.0,64777.0,0.04217759]
[1728912955654,0.002,64782.0,64778.0,0.15352847]
[1728912955907,0.002,64780.0,64778.0,0.15352847]
[1728912956375,0.002,64779.0,64778.0,0.15352847]
[1728912956613,0.002,64780.0,64778.0,0.15352847]
[1728912956858,0.154364,64782.0,64778.0,0.15352847]
[1728912956859,0.002,64782.0,64781.0,0.154366]
[1728912957095,0.002,64782.0,64781.0,0.40464928]
[1728912957763,0.002,64782.0,64781.0,0.41565327]
[1728912958006,0.001648,64784.0,64781.0,0.26128727]
[1728912958229,0.001648,64784.0,64783.0,0.42260841]
[1728912958456,0.001648,64784.0,64783.0,0.72977739]
[1728912958683,0.001648,64784.0,64783.0,0.74075166]
[1728912959375,0.005648,64784.0,64783.0,0.74075166]
[1728912959623,0.007648,64784.0,64783.0,0.01097427]
[1728912959868,0.233107,64784.0,64783.0,0.01097427]
[1728912960098,0.233107,64784.0,64767.0,0.29170287]
[1728912960099,0.002,64771.0,64763.0,0.27324741]
[1728912960337,0.0919,64781.0,64764.0,0.15352847]
[1728912960338,0.154404,64765.0,64764.0,0.15352847]
[1728912960629,0.156404,64765.0,64764.0,0.01125668]
[1728912961094,0.154428,64755.0,64753.0,0.309]
[1728912961336,0.156428,64755.0,64750.0,0.005824]
[1728912961563,0.156428,64755.0,64754.0,0.01222939]
[1728912961787,0.156428,64755.0,64754.0,0.15435247]
[1728912962013,0.156428,64755.0,64754.0,0.17037012]
[1728912962469,0.156428,64755.0,64754.0,0.01684165]
[1728912962693,0.158428,64755.0,64754.0,0.01222939]
[1728912962913,0.158428,64755.0,64754.0,0.000824]
[1728912963901,0.163428,64755.0,64754.0,0.000824]
[1728912964135,0.158428,64755.0,64754.0,0.000824]
[1728912964363,0.156428,64755.0,64754.0,0.000824]
[1728912964592,0.161428,64755.0,64754.0,0.000824]
[1728912964823,0.166428,64755.0,64754.0,0.000824]
[1728912965079,0.170428,64755.0,64754.0,0.000824]
[1728912965311,0.165428,64755.0,64754.0,0.000824]
[1728912965799,0.248628,64755.0,64754.0,0.000824]
[1728912966302,0.244628,64755.0,64754.0,0.000824]
[1728912966530,0.235628,64755.0,64754.0,0.000824]
[1728912966764,0.50387541,64755.0,64754.0,0.000824]
[1728912966992,0.50787541,64755.0,64754.0,0.000824]
[1728912967220,0.50667602,64755.0,64754.0,0.000824]
[1728912967474,0.23842861,64755.0,64754.0,0.000824]
[1728912967704,0.51167602,64755.0,64754.0,0.000824]
[1728912967960,0.24342861,64755.0,64754.0,0.000824]
[1728912968922,0.23842861,64755.0,64754.0,0.000824]
[1728912969149,0.24142861,64755.0,64754.0,0.000824]
[1728912969397,0.009,64755.0,64754.0,0.000824]
[1728912969909,0.163428,64755.0,64754.0,0.000824]
[1728912970138,0.159428,64755.0,64754.0,0.000824]
[1728912970371,0.159428,64755.0,64754.0,0.01222939]
[1728912970607,0.163428,64755.0,64754.0,0.02897863]
[1728912970856,0.159428,64755.0,64754.0,0.02897863]
[1728912971119,0.156428,64755.0,64754.0,0.02897863]
[1728912971362,0.156428,64755.0,64754.0,0.01222939]
[1728912971363,0.158428,64755.0,64754.0,0.01222939]
[1728912971610,0.33774771,64755.0,64754.0,0.000824]
[1728912972289,0.33274771,64755.0,64754.0,0.000824]
[1728912972758,0.33274771,64755.0,64754.0,0.001824]
[1728912972759,0.33774771,64755.0,64754.0,0.001824]
[1728912972987,0.163428,64755.0,64754.0,0.001824]
[1728912973212,0.34174771,64755.0,64754.0,0.001824]
[1728912973698,0.167428,64755.0,64754.0,0.001824]
[1728912973928,0.34174771,64755.0,64754.0,0.001824]
[1728912974151,0.33474771,64755.0,64754.0,0.000824]
[1728912974616,0.34139571,64755.0,64754.0,0.000824]
[1728912975075,0.33639571,64755.0,64754.0,0.000824]
[1728912975320,0.33939571,64755.0,64754.0,0.000824]
[1728912976089,0.33639571,64755.0,64754.0,0.01222939]
[1728912976320,0.158076,64755.0,64754.0,0.000824]
[1728912976542,0.158076,64755.0,64754.0,0.01222939]
[1728912976543,0.33539571,64755.0,64754.0,0.01222939]
[1728912976756,0.33539571,64755.0,64754.0,0.000824]
[1728912977446,0.34039571,64755.0,64754.0,0.000824]
[1728912977907,0.33539571,64755.0,64754.0,0.000824]
[1728912978385,0.33839571,64755.0,64754.0,0.000824]
[1728912978889,0.164076,64755.0,64754.0,0.000824]
[1728912979126,0.33839571,64755.0,64754.0,0.000824]
[1728912980264,0.164076,64755.0,64754.0,0.000824]
[1728912980494,0.33839571,64755.0,64754.0,0.000824]
[1728912981855,0.164076,64755.0,64754.0,0.000824]
[1728912982993,0.007648,64755.0,64754.0,0.48310218]
[1728912983243,0.007648,64755.0,64754.0,0.62860666]
[1728912983465,0.007648,64755.0,64754.0,0.45935251]
[1728912983690,0.007648,64755.0,64754.0,0.45428695]
[1728912983897,0.004648,64755.0,64754.0,0.45935251]
[1728912984153,0.004648,64755.0,64754.0,0.46635251]
[1728912984394,0.001648,64755.0,64754.0,0.46635251]
[1728912984868,0.003648,64755.0,64754.0,0.46128695]
[1728912985098,0.003648,64755.0,64754.0,0.46635251]
[1728912985334,0.001648,64755.0,64754.0,0.02429495]
[1728912985587,0.237376,64755.0,64754.0,0.01922939]
[1728912985821,0.238376,64755.0,64754.0,0.02622939]
[1728912986051,0.238376,64755.0,64754.0,0.014824]
[1728912986979,0.00195107,64755.0,64754.0,0.31578247]
[1728912987235,0.00195107,64755.0,64754.0,0.39626339]
[1728912987471,0.00395107,64755.0,64754.0,0.41273962]
[1728912987726,0.00295107,64755.0,64754.0,0.41073962]
[1728912988656,0.00095107,64755.0,64754.0,0.41073962]
[1728912989168,0.00195107,64755.0,64754.0,0.41773962]
[1728912989444,0.00195107,64755.0,64754.0,0.43619392]
[1728912989686,0.00195107,64755.0,64754.0,0.43626661]
[1728912990169,0.00195107,64755.0,64754.0,0.44426661]
[1728912992285,0.00395107,64755.0,64754.0,0.28483661]
[1728912992511,0.00195107,64755.0,64754.0,0.26632614]
[1728912992962,0.00395107,64755.0,64754.0,0.26632614]
[1728912993425,0.00395107,64755.0,64754.0,0.26632124]
[1728912993651,0.00195107,64755.0,64754.0,0.26632124]
[1728912993878,0.00195107,64755.0,64754.0,0.42075124]
[1728912994100,0.00395107,64755.0,64754.0,0.26632124]
[1728912995311,0.15837907,64755.0,64754.0,0.03231185]
[1728912995539,0.23867907,64755.0,64754.0,0.03231185]
[1728912995759,0.23867907,64755.0,64754.0,0.02090646]
[1728912996008,0.08425107,64755.0,64754.0,0.02090646]
[1728912996233,0.00195107,64755.0,64754.0,0.50818464]
[1728912996465,0.00195107,64755.0,64754.0,0.64016771]
[1728912996656,0.00195107,64755.0,64754.0,0.465848]
[1728912997167,0.00095107,64755.0,64754.0,0.45376554]
[1728912997400,0.00295107,64755.0,64754.0,0.51705577]
[1728912997625,0.00295107,64755.0,64754.0,0.51413876]
[1728912997850,0.00395107,64755.0,64754.0,0.50905533]
[1728912998313,0.00395107,64755.0,64754.0,0.61605533]
[1728912998314,0.00195107,64755.0,64754.0,0.61605533]
[1728912998560,0.001648,64765.0,64764.0,0.269406]
[1728912998782,0.001648,64765.0,64764.0,0.93207686]
[1728912999015,0.001648,64765.0,64764.0,0.94333354]
[1728912999282,0.001648,64765.0,64764.0,0.88427599]
[1728912999508,0.001648,64765.0,64764.0,0.86120852]
[1728912999737,0.001648,64765.0,64764.0,0.76901383]
[1728912999966,0.001648,64765.0,64764.0,0.96457599]
[1728913000190,0.001648,64765.0,64764.0,0.84931383]
[1728913000671,0.002648,64765.0,64764.0,0.88348703]
[1728913000894,0.002648,64765.0,64764.0,0.86498236]
[1728913001121,0.002648,64765.0,64764.0,1.03566743]
[1728913001348,0.002648,64765.0,64764.0,0.9094439]
[1728913001349,0.001648,64765.0,64764.0,0.9094439]
[1728913001577,0.002648,64765.0,64764.0,0.9204439]
[1728913001806,0.002648,64765.0,64764.0,0.98742458]
[1728913002022,0.002648,64765.0,64764.0,0.96242458]
[1728913002023,0.001648,64765.0,64764.0,0.96242458]
[1728913002496,0.002648,64765.0,64764.0,0.83622556]
[1728913003645,0.002648,64765.0,64764.0,0.94238094]
[1728913003878,0.002648,64765.0,64764.0,0.85022556]
[1728913004101,0.002648,64765.0,64764.0,0.84808118]
[1728913004321,0.002648,64765.0,64764.0,0.82962817]
[1728913004550,0.002648,64765.0,64764.0,0.8250459]
[1728913004800,0.002648,64765.0,64764.0,0.82504694]
[1728913005025,0.002648,64765.0,64764.0,0.82504759]
[1728913005252,0.002648,64765.0,64764.0,0.84808826]
[1728913005939,0.002648,64765.0,64764.0,0.86208826]
[1728913006593,0.002648,64765.0,64764.0,0.88512894]
[1728913007088,0.002648,64765.0,64764.0,0.88511606]
[1728913007558,0.001648,64784.0,64783.0,0.154361]
[1728913007782,0.001648,64784.0,64783.0,0.32868071]
[1728913008006,0.001648,64784.0,64783.0,0.33965498]
[1728913008912,0.001648,64784.0,64783.0,0.34865498]
[1728913009401,0.001648,64784.0,64783.0,0.17350274]
[1728913009639,0.001648,64784.0,64783.0,0.57395259]
[1728913010330,0.001648,64784.0,64783.0,0.57895259]
[1728913010558,0.001648,64784.0,64783.0,0.58401543]
[1728913011009,0.001648,64784.0,64783.0,0.59401543]
[1728913011251,0.001648,64784.0,64783.0,0.61666086]
[1728913012161,0.001648,64784.0,64783.0,0.80941353]
[1728913012389,0.001648,64784.0,64783.0,0.83241353]
[1728913012612,0.23160479,64801.0,64800.0,0.15932]
[1728913012831,0.23160479,64801.0,64800.0,0.58923818]
[1728913013044,0.23160479,64801.0,64800.0,0.59995991]
[1728913013272,0.0829,64815.0,64800.0,0.59995991]
[1728913013273,0.0829,64815.0,64807.0,0.159304]
[1728913013497,0.0829,64815.0,64807.0,0.33362371]
[1728913013732,0.0829,64815.0,64807.0,0.34424149]
[1728913013978,0.002,64814.0,64810.0,0.308594]
[1728913014214,0.0809,64815.0,64810.0,0.308594]
[1728913014215,0.0809,64815.0,64814.0,0.154287]
[1728913014673,0.0809,64815.0,64814.0,0.16480085]
[1728913014679,0.001648,64820.0,64818.0,0.154278]
[1728913014896,0.001648,64820.0,64818.0,0.42203472]
[1728913015115,0.001648,64820.0,64818.0,0.4324892]
[1728913015789,0.001648,64820.0,64818.0,0.2782112]
[1728913016019,0.157923,64819.0,64818.0,0.01045448]
[1728913016255,0.20433607,64819.0,64818.0,0.01045448]
[1728913016479,0.005,64815.0,64811.0,0.30782147]
[1728913016730,0.005,64815.0,64812.0,0.09118657]
[1728913016731,0.002,64813.0,64812.0,0.09118657]
[1728913016958,0.002,64813.0,64812.0,0.24471504]
[1728913017180,0.002,64815.0,64812.0,0.24471504]
[1728913017404,0.002,64816.0,64814.0,0.154286]
[1728913017663,0.001648,64819.0,64818.0,0.154278]
[1728913017889,0.001648,64819.0,64818.0,0.63483004]
[1728913018116,0.001648,64819.0,64818.0,0.64528452]
[1728913018354,0.001648,64819.0,64818.0,0.49100652]
[1728913018580,0.001648,64819.0,64818.0,0.64528452]
[1728913019028,0.001648,64819.0,64818.0,0.49100652]
[1728913019499,0.001648,64819.0,64818.0,0.92804124]
[1728913019959,0.001648,64819.0,64818.0,0.93104124]
[1728913020214,0.001648,64819.0,64818.0,0.93404124]
[1728913020446,0.001648,64819.0,64818.0,0.93104124]
[1728913020681,0.001648,64819.0,64818.0,0.92804124]
[1728913020948,0.002648,64819.0,64818.0,0.95604124]
[1728913021412,0.002648,64819.0,64818.0,0.97904124]
[1728913021889,0.002648,64819.0,64818.0,1.07904124]
[1728913022115,0.001648,64820.0,64819.0,0.292275]
[1728913022346,0.001648,64830.0,64829.0,0.005]
[1728913022578,0.001648,64830.0,64829.0,0.59053619]
[1728913023017,0.001648,64830.0,64829.0,0.60147043]
[1728913024167,0.002648,64830.0,64829.0,0.61747043]
[1728913024419,0.002648,64830.0,64829.0,0.18046271]
[1728913024662,0.002648,64830.0,64829.0,0.04498051]
[1728913024663,0.235697,64830.0,64829.0,0.04498051]
[1728913024886,0.235697,64830.0,64829.0,0.02693424]
[1728913025132,0.235697,64830.0,64829.0,0.008]
[1728913025582,0.175148,64830.0,64817.0,0.154279]
[1728913025808,0.002,64818.0,64817.0,0.15428]
[1728913026052,0.002,64818.0,64816.0,0.26775672]
[1728913026536,0.002,64817.0,64816.0,0.26775672]
[1728913026779,0.0801,64817.0,64814.0,0.154287]
[1728913027019,0.002,64816.0,64812.0,0.005]
[1728913027252,0.002,64816.0,64813.0,0.154288]
[1728913027493,0.0801,64817.0,64816.0,0.01]
[1728913027728,0.0821,64817.0,64816.0,0.02]
[1728913027951,0.0801,64817.0,64816.0,0.01]
[1728913028623,0.0821,64817.0,64816.0,0.01]
[1728913029347,0.0801,64817.0,64815.0,0.154285]
[1728913029583,0.003,64816.0,64814.0,0.011]
[1728913029821,0.003,64816.0,64814.0,0.165286]
[1728913030062,0.0801,64817.0,64814.0,0.308575]
[1728913030310,0.002,64823.0,64816.0,0.011]
[1728913030552,0.002,64829.0,64825.0,0.308522]
[1728913030776,0.0774,64831.0,64825.0,0.308522]
[1728913030777,0.002,64828.0,64827.0,0.73052572]
[1728913031006,0.002,64828.0,64827.0,0.42201272]
[1728913031229,0.002,64828.0,64827.0,0.26775672]
[1728913031463,0.097348,64830.0,64827.0,0.26775672]
[1728913031699,0.002,64829.0,64828.0,0.15352847]
[1728913031922,0.097348,64830.0,64828.0,0.15352847]
[1728913032152,0.095348,64830.0,64828.0,0.15352847]
[1728913032375,0.097348,64830.0,64828.0,0.15352847]
[1728913032614,0.097348,64830.0,64829.0,0.01093424]
[1728913032857,0.097348,64830.0,64829.0,0.16446271]
[1728913033560,0.097348,64830.0,64829.0,0.01093424]
[1728913034039,0.002,64826.0,64821.0,0.15427]
[1728913034243,0.002,64826.0,64822.0,0.29314084]
[1728913034530,0.002,64824.0,64822.0,0.29314084]
[1728913034797,0.002,64826.0,64822.0,0.44740784]
[1728913035064,0.002,64826.0,64823.0,0.154266]
[1728913035331,0.002,64823.0,64818.0,0.27275672]
[1728913035582,0.002,64823.0,64822.0,0.002]
[1728913037004,0.002,64823.0,64822.0,0.005]
[1728913037231,0.002,64823.0,64822.0,0.15852847]
[1728913037518,0.002,64823.0,64822.0,0.20215699]
[1728913037748,0.002,64823.0,64822.0,0.04862852]
[1728913037979,0.002,64823.0,64822.0,0.005]
[1728913038478,0.329766,64823.0,64822.0,0.01]
[1728913038718,0.429766,64823.0,64822.0,0.005]
[1728913038958,0.427766,64823.0,64822.0,0.006]
[1728913039182,0.429766,64823.0,64822.0,0.006]
[1728913039403,0.429766,64823.0,64822.0,0.001]
[1728913039871,0.429766,64823.0,64822.0,0.004]
[1728913040136,0.429766,64823.0,64822.0,0.003]
[1728913040362,0.002,64816.0,64815.0,0.000822]
[1728913040852,0.002,64816.0,64815.0,0.01196402]
[1728913041099,0.002,64816.0,64815.0,0.02349737]
[1728913041840,0.002,64816.0,64815.0,0.01535535]
[1728913042077,0.002,64816.0,64815.0,0.02649737]
[1728913042558,0.002,64816.0,64815.0,0.01535535]
[1728913042785,0.232482,64816.0,64815.0,0.01535535]
[1728913043033,0.325982,64816.0,64815.0,0.01835535]
[1728913043736,0.325982,64816.0,64815.0,0.01535535]
[1728913043952,0.327982,64816.0,64815.0,0.01535535]
[1728913044171,0.327982,64816.0,64815.0,0.01235535]
[1728913044388,0.326982,64816.0,64815.0,0.01235535]
[1728913045067,0.327982,64816.0,64815.0,0.01235535]
[1728913046179,0.327982,64816.0,64815.0,0.000822]
[1728913046646,0.327982,64816.0,64815.0,0.01236395]
[1728913047108,0.60189915,64816.0,64815.0,0.01236395]
[1728913047329,0.427982,64816.0,64815.0,0.01236395]
[1728913047554,0.427982,64816.0,64815.0,0.000822]
[1728913049343,0.2737,64816.0,64815.0,0.01235646]
[1728913049603,0.2737,64816.0,64815.0,0.000822]
[1728913050755,0.427982,64816.0,64815.0,0.000822]
[1728913051410,0.002,64806.0,64804.0,0.17040754]
[1728913051643,0.002,64813.0,64805.0,0.2114794]
[1728913051868,0.2717,64816.0,64812.0,0.32820815]
[1728913051869,0.002,64814.0,64812.0,0.32820815]
[1728913052093,0.002,64813.0,64812.0,0.17391715]
[1728913052344,0.0802,64816.0,64813.0,0.06368061]
[1728913052565,0.0782,64816.0,64814.0,0.17391715]
[1728913052872,0.003,64816.0,64815.0,0.06997142]
[1728913053096,0.002,64816.0,64815.0,0.06997142]
[1728913053775,0.003,64816.0,64815.0,0.06997142]
[1728913054007,0.001,64816.0,64815.0,0.37778489]
[1728913054225,0.001,64816.0,64815.0,0.55387251]
[1728913054459,0.001644,64820.0,64819.0,0.169275]
[1728913054671,0.001644,64820.0,64819.0,0.82427828]
[1728913055349,0.001644,64820.0,64819.0,1.01063281]
[1728913056501,0.001644,64820.0,64819.0,1.02463281]
[1728913056713,0.001644,64820.0,64819.0,1.01063281]
[1728913056936,0.001644,64820.0,64819.0,0.85071566]
[1728913057166,0.001644,64820.0,64819.0,0.86471566]
[1728913057840,0.001644,64820.0,64819.0,0.72641958]
[1728913058748,0.001644,64820.0,64819.0,0.74911064]
[1728913059649,0.001644,64820.0,64819.0,1.02302779]
[1728913060082,0.23160479,64829.0,64828.0,0.5070883]
[1728913060307,0.23160479,64829.0,64828.0,0.77243893]
[1728913060599,0.001648,64830.0,64829.0,0.005]
[1728913060816,0.001648,64830.0,64829.0,0.40500043]
[1728913062560,0.001648,64830.0,64829.0,0.32082934]
[1728913062782,0.001648,64830.0,64829.0,0.16157834]
[1728913062999,0.003648,64830.0,64829.0,0.04842096]
[1728913063219,0.003648,64830.0,64829.0,0.03004987]
[1728913063684,0.079448,64830.0,64829.0,0.03004987]
[1728913064357,0.079448,64830.0,64829.0,0.022]
[1728913064540,0.079448,64830.0,64829.0,0.011]
[1728913064811,0.233697,64830.0,64829.0,0.011]
[1728913065490,0.079448,64830.0,64829.0,0.011]
[1728913065942,0.002,64822.0,64821.0,0.55979194]
[1728913066176,0.002,64822.0,64821.0,0.70048405]
[1728913066403,0.002,64822.0,64821.0,0.47700828]
[1728913066840,0.002,64822.0,64821.0,0.63127828]
[1728913067091,0.002,64822.0,64821.0,0.47700828]
[1728913067780,0.003,64822.0,64821.0,0.48500828]
[1728913070327,0.003,64822.0,64821.0,0.49300828]
[1728913070537,0.003,64822.0,64821.0,0.64727828]
[1728913070762,0.003,64822.0,64821.0,0.49300828]
[1728913071622,0.003,64822.0,64821.0,0.02412902]
[1728913074760,0.001,64822.0,64821.0,0.02412902]
[1728913075621,0.001,64822.0,64821.0,0.17839902]
[1728913075888,0.001,64822.0,64821.0,0.02412902]
[1728913076107,0.003,64822.0,64821.0,0.02412902]
[1728913076324,0.001,64822.0,64821.0,0.12107244]
[1728913077394,0.003,64822.0,64821.0,0.12107244]
[1728913079958,0.001,64822.0,64821.0,0.42887091]
[1728913080447,0.003,64822.0,64821.0,0.02412902]
[1728913080710,0.003,64822.0,64804.0,0.04695616]
[1728913080711,0.330906,64806.0,64804.0,0.04695616]
[1728913080987,0.330906,64806.0,64804.0,0.000823]
[1728913080988,0.156309,64805.0,64804.0,0.000823]
[1728913082937,0.159309,64805.0,64804.0,0.000823]
[1728913083443,0.157309,64805.0,64804.0,0.001823]
[1728913083889,0.159309,64805.0,64804.0,0.000823]
[1728913084352,0.163309,64805.0,64804.0,0.000823]
[1728913084798,0.161309,64805.0,64804.0,0.000823]
[1728913085015,0.007,64805.0,64804.0,0.155134]
[1728913085233,0.007,64805.0,64804.0,0.37243019]
[1728913085696,0.17591715,64835.0,64804.0,0.37243019]
[1728913085697,0.0769,64834.0,64827.0,0.308512]
[1728913085959,0.0769,64834.0,64814.0,0.005]
[1728913085960,0.002,64833.0,64816.0,0.005]
[1728913086182,0.0769,64834.0,64828.0,0.154254]
[1728913086183,0.0789,64834.0,64828.0,0.154254]
[1728913086434,0.0789,64834.0,64828.0,0.32817115]
[1728913086656,0.002,64836.0,64828.0,0.32817115]
[1728913086865,0.156235,64836.0,64828.0,0.39111484]
[1728913087083,0.002,64833.0,64829.0,0.154251]
[1728913087272,0.002,64833.0,64828.0,0.5683484]
[1728913087528,0.002,64833.0,64828.0,0.4140954]
[1728913087752,0.002,64833.0,64828.0,0.4190954]
[1728913087986,0.38585579,64829.0,64828.0,0.02298056]
[1728913088199,0.002,64833.0,64828.0,0.02298056]
[1728913088415,0.308467,64837.0,64828.0,0.02298056]
[1728913088416,0.002,64831.0,64828.0,0.02298056]
[1728913088632,0.002,64832.0,64828.0,0.02298056]
[1728913088849,0.23160479,64831.0,64828.0,0.02298056]
[1728913089065,0.002,64829.0,64828.0,0.02298056]
[1728913089524,0.156251,64829.0,64828.0,0.02298056]
[1728913089744,0.156251,64829.0,64815.0,0.26773341]
[1728913089745,0.002,64822.0,64817.0,0.154279]
[1728913089992,0.002,64820.0,64816.0,0.02727334]
[1728913090213,0.002,64818.0,64816.0,0.02727334]
[1728913090429,0.002,64816.0,64812.0,0.15429]
[1728913090646,0.232475,64819.0,64812.0,0.15429]
[1728913090647,0.002,64818.0,64812.0,0.308581]
[1728913090863,0.0782,64819.0,64814.0,0.462857]
[1728913091163,0.0782,64819.0,64817.0,0.005]
[1728913091164,0.0802,64819.0,64817.0,0.005]
[1728913091376,0.002,64818.0,64817.0,0.005]
[1728913091590,0.0782,64819.0,64817.0,0.005]
[1728913091591,0.0802,64819.0,64817.0,0.005]
[1728913092033,0.0782,64819.0,64817.0,0.005]